[Event "28th CRO-chT 1A-Men 2019"]
[Site "Mali Losinj"]
[Date "2019.10.02"]
[Round "5.24"]
[White "Feletar, Darko"]
[Black "Brulic, Denis"]
[Result "1-0"]
[ECO "E08"]
[WhiteElo "2356"]
[BlackElo "2230"]
[Annotator "NA"]
[PlyCount "85"]
[EventDate "2019.09.28"]
[EventType "team-tourn"]
[EventCountry "CRO"]
[SourceTitle "playchess.com"]
[Source "ChessBase"]
[SourceQuality "1"]
[TimeControl "40/5400+30:1800+30"]

1. Nf3 {[%emt 0:03:30]} Nf6 {[%emt 0:00:30]} 2. c4 {[%emt 0:00:30]} e6 {[%emt 0:00:00]} 3. g3 {[%emt 0:00:00]} d5 {[%emt 0:01:00]} 4. Bg2 {[%emt 0:00:00]} Nbd7 {[%emt 0:08:30]} 5. b3 {[%emt 0:04:30]} c6 {[%emt 0:04:30]} 6. O-O {[%emt 0:00:30]} Bd6 {[%emt 0:00:30]} 7. d4 {[%emt 0:03:30]} Ne4 {[%emt 0:01:30]} 8. Qc2 {[%emt 0:03:30]} O-O {[%emt 0:01:30]} 9. Ba3 {[%emt 0:01:30]} Bxa3 {[%emt 0:02:30]} 10. Nxa3 {[%emt 0:00:00]} Qe7 {[%emt 0:05:30]} 11. Nb1 {[%emt 0:04:00]} b6 {[%emt 0:02:30]} 12. Nbd2 {[%emt 0:04:30]} Nxd2 {[%emt 0:03:30]} 13. Nxd2 {[%emt 0:01:30]} Ba6 {[%emt 0:00:30]} 14. e4 {[%emt 0:08:30]} Rac8 {[%emt 0:00:30]} 15. Rfe1 {[%emt 0:01:30]} Qf6 {[%emt 0:06:30]} 16. Qb2 {[%emt 0:12:30]} Bb7 {[%emt 0:06:30]} 17. Rad1 {[%emt 0:03:30]} Rfd8 {[%emt 0:04:30]} 18. b4 {[%emt 0:10:30]} Rc7 {[%emt 0:02:30]} 19. Rc1 {[%emt 0:04:30]} Rdc8 {[%emt 0:05:30]} 20. Rc2 {[%emt 0:01:30]} Qd8 {[%emt 0:04:30]} 21. Rec1 {[%emt 0:02:30]} Nf6 {[%emt 0:01:30]} 22. e5 {[%emt 0:02:30]} Ne8 {[%emt 0:03:30]} 23. c5 {[%emt 0:06:30]} Ba6 {[%emt 0:02:30]} 24. Qb3 {[%emt 0:00:58]} Rb7 {[%emt 0:00:30]} 25. a3 {[%emt 0:01:21]} Be2 {[%emt 0:02:30]} 26. Qe3 {[%emt 0:03:38]} Bb5 {[%emt 0:00:30]} 27. Bf1 {[%emt 0:00:36]} Bxf1 {[%emt 0:08:30]} 28. Kxf1 {[%emt 0:00:09]} a5 {[%emt 0:00:30]} 29. Nb3 {[%emt 0:05:22]} axb4 {[%emt 0:01:30]} 30. axb4 {[%emt 0:00:47]} bxc5 {[%emt 0:00:30]} 31. Na5 {[%emt 0:00:29]} Rxb4 {[%emt 0:02:33]} 32. Rxc5 {[%emt 0:00:09]} Rb5 {[%emt 0:17:05]} 33. Nxc6 {[%emt 0:00:43]} Rxc5 {[%emt 0:00:08]} 34. Rxc5 {[%emt 0:00:25]} Qd7 {[%emt 0:00:54]} 35. Ne7+ {[%emt 0:00:50]} Qxe7 {[%emt 0:00:05]} 36. Rxc8 {[%emt 0:00:03]} f6 {[%emt 0:00:38]} 37. Qc3 {[%emt 0:02:40]} fxe5 {[%emt 0:00:32]} 38. dxe5 {[%emt 0:00:07]} Qd7 {[%emt 0:00:33]} 39. Qc5 {[%emt 0:01:27]} Kf7 {[%emt 0:01:04]} 40. Ra8 {[%emt 0:00:00]} Kg6 {[%emt 0:00:00]} 41. Ra7 {[%emt 0:05:16]} Qd8 {[%emt 0:01:58]} 42. Qf8 {[%emt 0:00:30]} Qc8 {[%emt 0:00:30]} 43. Rxg7+ {[%emt 0:03:30]} 1-0

[Event "28th CRO-chT 1A-Men 2019"]
[Site "Mali Losinj"]
[Date "2019.10.02"]
[Round "5.27"]
[White "Stevic, Hrvoje"]
[Black "Markus, Robert"]
[Result "1/2-1/2"]
[ECO "C02"]
[WhiteElo "2570"]
[BlackElo "2599"]
[Annotator "ChessBase"]
[PlyCount "74"]
[EventDate "2019.09.28"]
[EventType "team-tourn"]
[EventCountry "CRO"]
[SourceTitle "playchess.com"]
[Source "ChessBase"]
[SourceQuality "1"]
[TimeControl "40/5400+30:1800+30"]

1. e4 {[%emt 0:04:30]} e6 {[%emt 0:00:30]} 2. d4 {[%emt 0:01:30]} d5 {[%emt 0:00:00]} 3. e5 {[%emt 0:00:30]} c5 {[%emt 0:00:00]} 4. c3 {[%emt 0:00:30]} Nc6 {[%emt 0:00:30]} 5. Nf3 {[%emt 0:00:30]} Qb6 {[%emt 0:01:30]} 6. a3 {[%emt 0:00:30]} Nh6 {[%emt 0:01:30]} 7. b4 {[%emt 0:01:30]} cxd4 {[%emt 0:00:30]} 8. cxd4 {[%emt 0:04:30]} Nf5 {[%emt 0:01:30]} 9. Be3 {[%emt 0:03:30]} Be7 {[%emt 0:05:30]} 10. Bd3 {[%emt 0:02:30]} Nxe3 {[%emt 0:03:30]} 11. fxe3 {[%emt 0:01:30]} f6 {[%emt 0:02:30]} 12. exf6 {[%emt 0:00:00]} Bxf6 {[%emt 0:00:00]} 13. Nc3 {[%emt 0:04:00]} g6 {[%emt 0:08:00]} 14. O-O {[%emt 0:04:30]} O-O {[%emt 0:02:30]} 15. Rc1 {[%emt 0:04:30]} Bd7 {[%emt 0:14:30]} 16. Na4 {[%emt 0:04:30]} Qd8 {[%emt 0:01:30]} 17. Nc5 {[%emt 0:00:30]} Bc8 {[%emt 0:07:30]} 18. Rf2 {[%emt 0:09:30]} Ne7 {[%emt 0:08:30]} 19. Qe1 {[%emt 0:08:30]} b6 {[%emt 0:04:30]} 20. Na6 {[%emt 0:01:30]} Bxa6 {[%emt 0:01:30]} 21. Bxa6 {[%emt 0:00:30]} Qd7 {[%emt 0:02:30]} 22. Rfc2 {[%emt 0:06:30]} Qa4 {[%emt 0:05:30]} 23. Bb7 {[%emt 0:06:30]} Rab8 {[%emt 0:00:30]} 24. Bc6 {[%emt 0:03:30]} Nxc6 {[%emt 0:02:30]} 25. Rxc6 {[%emt 0:01:30]} Qxa3 {[%emt 0:01:30]} 26. Rxe6 {[%emt 0:05:30]} Rbe8 {[%emt 0:03:30]} 27. Ra1 {[%emt 0:02:37]} Qd3 {[%emt 0:01:30]} 28. Ne5 {[%emt 0:02:38]} Qe4 {[%emt 0:02:03]} 29. Rxe8 {[%emt 0:00:34]} Rxe8 {[%emt 0:00:04]} 30. Qc3 {[%emt 0:02:29]} Bxe5 {[%emt 0:01:05]} 31. dxe5 {[%emt 0:00:12]} Rxe5 {[%emt 0:00:21]} 32. Rxa7 {[%emt 0:02:32]} Qxe3+ {[%emt 0:01:00]} 33. Qxe3 {[%emt 0:00:07]} Rxe3 {[%emt 0:00:06]} 34. Rb7 {[%emt 0:00:08]} d4 {[%emt 0:01:04]} 35. Rxb6 {[%emt 0:00:12]} d3 {[%emt 0:00:20]} 36. Rd6 {[%emt 0:00:08]} Re4 {[%emt 0:00:00]} 37. Rxd3 {[%emt 0:00:09]} Rxb4 {[%emt 0:00:02]} 1/2-1/2

[Event "28th CRO-chT 1A-Men 2019"]
[Site "Mali Losinj"]
[Date "2019.10.02"]
[Round "5.28"]
[White "Kuljasevic, Davorin"]
[Black "Kozul, Zdenko"]
[Result "0-1"]
[ECO "E90"]
[WhiteElo "2550"]
[BlackElo "2581"]
[Annotator "ChessBase"]
[PlyCount "126"]
[EventDate "2019.09.28"]
[EventType "team-tourn"]
[EventCountry "CRO"]
[SourceTitle "playchess.com"]
[Source "ChessBase"]
[SourceQuality "1"]
[TimeControl "40/5400+30:1800+30"]

1. d4 {[%emt 0:00:30]} Nf6 {[%emt 0:00:30]} 2. c4 {[%emt 0:00:00]} g6 {[%emt 0:00:00]} 3. Nc3 {[%emt 0:00:00]} Bg7 {[%emt 0:00:00]} 4. e4 {[%emt 0:00:30]} d6 {[%emt 0:00:30]} 5. h3 {[%emt 0:00:00]} O-O {[%emt 0:00:30]} 6. Be3 {[%emt 0:00:00]} c6 {[%emt 0:06:30]} 7. Nf3 {[%emt 0:00:30]} Na6 {[%emt 0:00:30]} 8. Rc1 {[%emt 0:01:30]} e5 {[%emt 0:06:30]} 9. d5 {[%emt 0:00:30]} Nc5 {[%emt 0:02:30]} 10. Nd2 {[%emt 0:00:30]} a5 {[%emt 0:01:30]} 11. g4 {[%emt 0:00:30]} a4 {[%emt 0:06:30]} 12. Be2 {[%emt 0:05:30]} Qa5 {[%emt 0:00:30]} 13. Kf1 {[%emt 0:00:30]} Ne8 {[%emt 0:09:30]} 14. a3 {[%emt 0:20:30]} Bf6 {[%emt 0:06:30]} 15. h4 {[%emt 0:02:30]} Bd8 {[%emt 0:02:30]} 16. g5 {[%emt 0:07:30]} Bb6 {[%emt 0:11:30]} 17. h5 {[%emt 0:07:30]} Ba7 {[%emt 0:01:30]} 18. Na2 {[%emt 0:13:30]} cxd5 {[%emt 0:07:30]} 19. cxd5 {[%emt 0:00:30]} Qd8 {[%emt 0:00:30]} 20. Rc3 {[%emt 0:01:30]} Ng7 {[%emt 0:01:30]} 21. Kg2 {[%emt 0:05:30]} Bd7 {[%emt 0:02:30]} 22. Qg1 {[%emt 0:01:30]} Be8 {[%emt 0:04:30]} 23. h6 {[%emt 0:12:46]} Nh5 {[%emt 0:00:30]} 24. Bxh5 {[%emt 0:00:16]} gxh5 {[%emt 0:00:00]} 25. Kh2 {[%emt 0:01:24]} Kh8 {[%emt 0:03:00]} 26. f4 {[%emt 0:01:43]} f6 {[%emt 0:09:32]} 27. gxf6 {[%emt 0:06:19]} Rg8 {[%emt 0:00:19]} 28. Qf2 {[%emt 0:00:21]} Qxf6 {[%emt 0:00:28]} 29. fxe5 {[%emt 0:02:29]} Qxe5+ {[%emt 0:01:51]} 30. Bf4 {[%emt 0:00:13]} Qf6 {[%emt 0:01:09]} 31. Be3 {[%emt 0:02:22]} Nd7 {[%emt 0:03:35]} 32. Qxf6+ {[%emt 0:02:07]} Nxf6 {[%emt 0:00:08]} 33. Bxa7 {[%emt 0:00:04]} Rxa7 {[%emt 0:00:28]} 34. Rf1 {[%emt 0:00:34]} Ng4+ {[%emt 0:00:18]} 35. Kh1 {[%emt 0:00:23]} b5 {[%emt 0:03:09]} 36. Rcf3 {[%emt 0:01:42]} Nxh6 {[%emt 0:02:24]} 37. Rf6 {[%emt 0:01:53]} Ng4 {[%emt 0:01:47]} 38. Rxd6 {[%emt 0:00:55]} Rag7 {[%emt 0:00:07]} 39. Nf3 {[%emt 0:00:17]} Rf7 {[%emt 0:03:06]} 40. Rd8 {[%emt 0:00:00]} Rf4 {[%emt 0:00:00]} 41. Nc3 {[%emt 0:05:42]} Ne3 {[%emt 0:08:39]} 42. Rg1 {[%emt 0:03:30]} Rgf8 {[%emt 0:01:30]} 43. Rg3 {[%emt 0:06:00]} h4 {[%emt 0:01:30]} 44. Rh3 {[%emt 0:00:25]} Ng4 {[%emt 0:00:30]} 45. Kg1 {[%emt 0:18:49]} Rg8 {[%emt 0:00:30]} 46. Rxe8 {[%emt 0:00:44]} Rxe8 {[%emt 0:00:30]} 47. Nxh4 {[%emt 0:00:02]} Ne5 {[%emt 0:03:30]} 48. Nf5 {[%emt 0:00:16]} Rg8+ {[%emt 0:00:30]} 49. Rg3 {[%emt 0:00:59]} Rxg3+ {[%emt 0:01:41]} 50. Nxg3 {[%emt 0:00:32]} Rf3 {[%emt 0:00:30]} 51. Nge2 {[%emt 0:00:28]} Rd3 {[%emt 0:04:15]} 52. Nxb5 {[%emt 0:00:16]} Rb3 {[%emt 0:00:07]} 53. Nbd4 {[%emt 0:01:07]} Rxb2 {[%emt 0:00:08]} 54. Nc3 {[%emt 0:00:02]} h5 {[%emt 0:04:44]} 55. Nf5 {[%emt 0:01:04]} Rc2 {[%emt 0:02:56]} 56. Nb5 {[%emt 0:00:28]} Ra2 {[%emt 0:01:06]} 57. d6 {[%emt 0:00:44]} Kg8 {[%emt 0:00:10]} 58. Kf1 {[%emt 0:00:38]} Kf7 {[%emt 0:00:08]} 59. Ke1 {[%emt 0:00:08]} Rh2 {[%emt 0:01:10]} 60. Nc3 {[%emt 0:00:17]} h4 {[%emt 0:00:18]} 61. Kf1 {[%emt 0:00:21]} h3 {[%emt 0:00:31]} 62. Ne2 {[%emt 0:00:40]} Rh1+ {[%emt 0:00:20]} 63. Kf2 {[%emt 0:00:02]} Ra1 {[%emt 0:00:05]} 0-1

[Event "28th CRO-chT 1A-Men 2019"]
[Site "Mali Losinj"]
[Date "2019.10.03"]
[Round "6.3"]
[White "Lalic, Bogdan"]
[Black "Markus, Robert"]
[Result "1/2-1/2"]
[ECO "E94"]
[WhiteElo "2419"]
[BlackElo "2599"]
[Annotator "ChessBase"]
[PlyCount "32"]
[EventDate "2019.09.28"]
[EventType "team-tourn"]
[EventCountry "CRO"]
[SourceTitle "playchess.com"]
[Source "ChessBase"]
[SourceQuality "1"]
[TimeControl "40/5400+30:1800+30"]

1. d4 {[%emt 0:00:30]} Nf6 {[%emt 0:00:30]} 2. c4 {[%emt 0:00:00]} d6 {[%emt 0:00:00]} 3. Nf3 {[%emt 0:00:00]} Nbd7 {[%emt 0:00:00]} 4. Nc3 {[%emt 0:00:00]} e5 {[%emt 0:00:00]} 5. e4 {[%emt 0:00:00]} g6 {[%emt 0:00:00]} 6. Be2 {[%emt 0:00:30]} Bg7 {[%emt 0:00:30]} 7. O-O {[%emt 0:00:00]} O-O {[%emt 0:00:00]} 8. Be3 {[%emt 0:00:00]} c6 {[%emt 0:00:00]} 9. Qc2 {[%emt 0:00:30]} Qe7 {[%emt 0:01:30]} 10. Rad1 {[%emt 0:03:30]} Re8 {[%emt 0:00:30]} 11. d5 {[%emt 0:02:30]} c5 {[%emt 0:00:30]} 12. Ne1 {[%emt 0:01:30]} Nf8 {[%emt 0:01:30]} 13. Nd3 {[%emt 0:03:30]} Ng4 {[%emt 0:03:30]} 14. Bd2 {[%emt 0:00:30]} f5 {[%emt 0:01:30]} 15. Bxg4 {[%emt 0:01:30]} fxg4 {[%emt 0:00:00]} 16. Qc1 {[%emt 0:02:30]} Nd7 {[%emt 0:05:00]} 1/2-1/2

[Event "28th CRO-chT 1A-Men 2019"]
[Site "Mali Losinj"]
[Date "2019.10.03"]
[Round "6.9"]
[White "Leventic, Ivan"]
[Black "Stevic, Hrvoje"]
[Result "1/2-1/2"]
[ECO "C70"]
[WhiteElo "2388"]
[BlackElo "2570"]
[Annotator "ChessBase"]
[PlyCount "27"]
[EventDate "2019.09.28"]
[EventType "team-tourn"]
[EventCountry "CRO"]
[SourceTitle "playchess.com"]
[Source "ChessBase"]
[SourceQuality "1"]
[TimeControl "40/5400+30:1800+30"]

1. e4 {[%emt 0:00:30]} e5 {[%emt 0:03:30]} 2. Nf3 {[%emt 0:00:30]} Nc6 {[%emt 0:00:30]} 3. Bb5 {[%emt 0:01:30]} a6 {[%emt 0:00:30]} 4. Ba4 {[%emt 0:00:30]} b5 {[%emt 0:00:00]} 5. Bb3 {[%emt 0:00:30]} Na5 {[%emt 0:00:00]} 6. O-O {[%emt 0:07:30]} d6 {[%emt 0:00:30]} 7. d4 {[%emt 0:01:30]} exd4 {[%emt 0:00:00]} 8. Nxd4 {[%emt 0:00:30]} Bb7 {[%emt 0:00:00]} 9. c4 {[%emt 0:04:30]} c5 {[%emt 0:00:30]} 10. Nf3 {[%emt 0:04:30]} Nf6 {[%emt 0:10:30]} 11. Nc3 {[%emt 0:03:30]} Be7 {[%emt 0:03:30]} 12. Re1 {[%emt 0:09:30]} O-O {[%emt 0:02:30]} 13. Qd3 {[%emt 0:00:30]} Re8 {[%emt 0:44:30]} 14. Bf4 {[%emt 0:11:30]} 1/2-1/2

[Event "28th CRO-chT 1A-Men 2019"]
[Site "Mali Losinj"]
[Date "2019.10.03"]
[Round "6.16"]
[White "Plenca, Julijan"]
[Black "Blazeka, Matej"]
[Result "1-0"]
[ECO "C43"]
[WhiteElo "2423"]
[BlackElo "2385"]
[Annotator "NA"]
[PlyCount "83"]
[EventDate "2019.09.28"]
[EventType "team-tourn"]
[EventCountry "CRO"]
[SourceTitle "playchess.com"]
[Source "ChessBase"]
[SourceQuality "1"]
[TimeControl "40/5400+30:1800+30"]

1. e4 {[%emt 0:07:30]} e5 {[%emt 0:00:30]} 2. Nf3 {[%emt 0:00:30]} Nf6 {[%emt 0:00:00]} 3. d4 {[%emt 0:01:30]} Nxe4 {[%emt 0:00:00]} 4. Bd3 {[%emt 0:00:30]} d5 {[%emt 0:02:30]} 5. dxe5 {[%emt 0:00:30]} Nc6 {[%emt 0:08:30]} 6. Nbd2 {[%emt 0:04:30]} Nxd2 {[%emt 0:11:30]} 7. Bxd2 {[%emt 0:00:30]} Bg4 {[%emt 0:00:30]} 8. Bb5 {[%emt 0:04:30]} Be7 {[%emt 0:07:30]} 9. h3 {[%emt 0:01:30]} Bh5 {[%emt 0:01:30]} 10. g4 {[%emt 0:01:30]} Bg6 {[%emt 0:00:00]} 11. Nd4 {[%emt 0:01:30]} Qd7 {[%emt 0:02:00]} 12. c3 {[%emt 0:00:30]} O-O {[%emt 0:21:30]} 13. Qa4 {[%emt 0:00:30]} Bc5 {[%emt 0:02:30]} 14. Bxc6 {[%emt 0:02:30]} bxc6 {[%emt 0:00:00]} 15. Qxc6 {[%emt 0:00:30]} Qxc6 {[%emt 0:04:00]} 16. Nxc6 {[%emt 0:00:30]} Rae8 {[%emt 0:10:30]} 17. b4 {[%emt 0:04:30]} Re6 {[%emt 0:05:30]} 18. bxc5 {[%emt 0:00:30]} Rxc6 {[%emt 0:00:00]} 19. Be3 {[%emt 0:00:30]} Re8 {[%emt 0:04:52]} 20. f4 {[%emt 0:02:30]} f6 {[%emt 0:05:47]} 21. Bd4 {[%emt 0:01:30]} fxe5 {[%emt 0:00:10]} 22. fxe5 {[%emt 0:00:30]} Kf7 {[%emt 0:00:54]} 23. O-O+ {[%emt 0:00:30]} Ke6 {[%emt 0:01:43]} 24. Rf2 {[%emt 0:00:30]} Rb8 {[%emt 0:00:35]} 25. Kh2 {[%emt 0:01:30]} Ra6 {[%emt 0:02:48]} 26. Raf1 {[%emt 0:01:30]} Ra3 {[%emt 0:02:27]} 27. Rd1 {[%emt 0:01:30]} Ra5 {[%emt 0:05:09]} 28. h4 {[%emt 0:00:30]} h6 {[%emt 0:00:33]} 29. h5 {[%emt 0:00:30]} Be4 {[%emt 0:00:23]} 30. Rdd2 {[%emt 0:00:30]} Rab5 {[%emt 0:00:33]} 31. Kg3 {[%emt 0:01:30]} Rb1 {[%emt 0:00:20]} 32. Rf4 {[%emt 0:02:30]} c6 {[%emt 0:00:39]} 33. c4 {[%emt 0:00:30]} Rh1 {[%emt 0:00:33]} 34. cxd5+ {[%emt 0:02:30]} Bxd5 {[%emt 0:00:06]} 35. Be3 {[%emt 0:03:30]} Ke7 {[%emt 0:00:51]} 36. e6 {[%emt 0:01:30]} Bxe6 {[%emt 0:00:31]} 37. Bd4 {[%emt 0:00:00]} Rf8 {[%emt 0:00:34]} 38. Re4 {[%emt 0:00:00]} Re8 {[%emt 0:00:27]} 39. Rb2 {[%emt 0:01:30]} Rd8 {[%emt 0:00:32]} 40. Rbe2 {[%emt 0:00:00]} Kf8 {[%emt 0:00:00]} 41. Rxe6 {[%emt 0:01:00]} Rxd4 {[%emt 0:04:33]} 42. Rf2+ {[%emt 0:00:30]} 1-0

[Event "28th CRO-chT 1A-Men 2019"]
[Site "Mali Losinj"]
[Date "2019.10.03"]
[Round "6.18"]
[White "Tomas, Ante"]
[Black "Brumen, Dinko"]
[Result "0-1"]
[ECO "A04"]
[WhiteElo "2161"]
[BlackElo "2317"]
[Annotator "NA"]
[PlyCount "86"]
[EventDate "2019.09.28"]
[EventType "team-tourn"]
[EventCountry "CRO"]
[SourceTitle "playchess.com"]
[Source "ChessBase"]
[SourceQuality "1"]
[TimeControl "40/5400+30:1800+30"]

1. e4 {[%emt 0:00:30]} e6 {[%emt 0:02:30]} 2. d3 {[%emt 0:00:30]} c5 {[%emt 0:02:30]} 3. Nd2 {[%emt 0:00:30]} Nc6 {[%emt 0:01:30]} 4. Ngf3 {[%emt 0:00:30]} Nge7 {[%emt 0:03:30]} 5. g3 {[%emt 0:00:30]} g6 {[%emt 0:00:30]} 6. Bg2 {[%emt 0:00:00]} Bg7 {[%emt 0:00:00]} 7. O-O {[%emt 0:00:00]} O-O {[%emt 0:00:00]} 8. Re1 {[%emt 0:00:30]} d6 {[%emt 0:01:30]} 9. c3 {[%emt 0:02:30]} b5 {[%emt 0:00:30]} 10. Nf1 {[%emt 0:13:30]} a5 {[%emt 0:04:30]} 11. d4 {[%emt 0:03:30]} b4 {[%emt 0:04:30]} 12. e5 {[%emt 0:11:30]} Bb7 {[%emt 0:12:30]} 13. exd6 {[%emt 0:09:30]} Qxd6 {[%emt 0:01:30]} 14. Bf4 {[%emt 0:00:30]} Qd8 {[%emt 0:05:30]} 15. Ne5 {[%emt 0:24:30]} cxd4 {[%emt 0:06:30]} 16. cxd4 {[%emt 0:00:30]} Nd5 {[%emt 0:00:30]} 17. Nxc6 {[%emt 0:05:30]} Bxc6 {[%emt 0:00:30]} 18. Be5 {[%emt 0:01:30]} Bh6 {[%emt 0:05:30]} 19. Qg4 {[%emt 0:07:42]} Re8 {[%emt 0:08:30]} 20. Qh3 {[%emt 0:06:08]} Bf8 {[%emt 0:02:30]} 21. Ne3 {[%emt 0:00:54]} Nxe3 {[%emt 0:07:30]} 22. Bxc6 {[%emt 0:01:50]} Nc2 {[%emt 0:00:30]} 23. Bxe8 {[%emt 0:01:48]} Qxe8 {[%emt 0:07:30]} 24. Qh4 {[%emt 0:01:30]} Be7 {[%emt 0:03:15]} 25. Qh6 {[%emt 0:00:43]} f6 {[%emt 0:00:47]} 26. Bf4 {[%emt 0:00:57]} Nxd4 {[%emt 0:03:14]} 27. Qh3 {[%emt 0:02:10]} e5 {[%emt 0:05:56]} 28. Qg2 {[%emt 0:01:55]} Rd8 {[%emt 0:01:50]} 29. Qe4 {[%emt 0:02:14]} f5 {[%emt 0:03:05]} 30. Qe3 {[%emt 0:00:02]} exf4 {[%emt 0:01:26]} 31. Qxe7 {[%emt 0:00:43]} Nf3+ {[%emt 0:00:14]} 32. Kf1 {[%emt 0:00:44]} Nxe1 {[%emt 0:01:38]} 33. Rxe1 {[%emt 0:00:25]} Qxe7 {[%emt 0:00:54]} 34. Rxe7 {[%emt 0:00:01]} Rd2 {[%emt 0:01:21]} 35. Ra7 {[%emt 0:01:11]} f3 {[%emt 0:00:51]} 36. Ke1 {[%emt 0:00:30]} Re2+ {[%emt 0:00:20]} 37. Kd1 {[%emt 0:00:31]} Rxb2 {[%emt 0:00:34]} 38. Rxa5 {[%emt 0:00:07]} Rxf2 {[%emt 0:00:10]} 39. Ra4 {[%emt 0:00:33]} Rb2 {[%emt 0:00:19]} 40. Ke1 {[%emt 0:00:00]} Kg7 {[%emt 0:00:00]} 41. a3 {[%emt 0:00:52]} b3 {[%emt 0:05:06]} 42. Rb4 {[%emt 0:01:30]} Rb1+ {[%emt 0:01:30]} 43. Kf2 {[%emt 0:01:30]} b2 {[%emt 0:00:00]} 0-1

[Event "28th CRO-chT 1A-Men 2019"]
[Site "Mali Losinj"]
[Date "2019.10.03"]
[Round "6.23"]
[White "Sindik, Ervin"]
[Black "Rogic, Davor"]
[Result "1/2-1/2"]
[ECO "C95"]
[WhiteElo "2283"]
[BlackElo "2492"]
[Annotator "RC"]
[PlyCount "57"]
[EventDate "2019.09.28"]
[EventType "team-tourn"]
[EventCountry "CRO"]
[SourceTitle "playchess.com"]
[Source "ChessBase"]
[SourceQuality "1"]
[TimeControl "40/5400+30:1800+30"]

1. e4 {[%emt 0:00:00]} e5 {[%emt 0:01:30]} 2. Nf3 {[%emt 0:00:00]} Nc6 {[%emt 0:00:30]} 3. Bb5 {[%emt 0:00:30]} a6 {[%emt 0:00:30]} 4. Ba4 {[%emt 0:00:30]} Nf6 {[%emt 0:00:30]} 5. O-O {[%emt 0:00:00]} Be7 {[%emt 0:00:00]} 6. Re1 {[%emt 0:00:00]} b5 {[%emt 0:00:00]} 7. Bb3 {[%emt 0:00:00]} d6 {[%emt 0:00:30]} 8. c3 {[%emt 0:00:00]} O-O {[%emt 0:00:00]} 9. h3 {[%emt 0:00:30]} Nb8 {[%emt 0:00:00]} 10. d4 {[%emt 0:00:30]} Nbd7 {[%emt 0:00:30]} 11. c4 {[%emt 0:01:30]} c6 {[%emt 0:01:30]} 12. Nc3 {[%emt 0:00:30]} Bb7 {[%emt 0:00:30]} 13. a3 {[%emt 0:01:30]} h6 {[%emt 0:06:30]} 14. Ba2 {[%emt 0:03:30]} Qc7 {[%emt 0:03:30]} 15. Qc2 {[%emt 0:03:30]} a5 {[%emt 0:06:30]} 16. cxb5 {[%emt 0:04:30]} cxb5 {[%emt 0:02:30]} 17. Qb3 {[%emt 0:01:30]} b4 {[%emt 0:15:30]} 18. axb4 {[%emt 0:03:30]} axb4 {[%emt 0:00:30]} 19. Qxb4 {[%emt 0:02:30]} Nxe4 {[%emt 0:12:30]} 20. Nxe4 {[%emt 0:08:30]} Bxe4 {[%emt 0:03:30]} 21. Rxe4 {[%emt 0:10:30]} d5 {[%emt 0:01:30]} 22. Qxe7 {[%emt 0:02:30]} Rxa2 {[%emt 0:00:30]} 23. Rxa2 {[%emt 0:04:30]} dxe4 {[%emt 0:00:30]} 24. Bxh6 {[%emt 0:05:30]} gxh6 {[%emt 0:04:30]} 25. Nxe5 {[%emt 0:01:30]} Qc1+ {[%emt 0:00:00]} 26. Kh2 {[%emt 0:00:00]} Qf4+ {[%emt 0:00:00]} 27. Kg1 {[%emt 0:00:00]} Qc1+ {[%emt 0:01:30]} 28. Kh2 {[%emt 0:00:30]} Qf4+ {[%emt 0:00:30]} 29. Kg1 {[%emt 0:00:30]} 1/2-1/2

[Event "28th CRO-chT 1A-Men 2019"]
[Site "Mali Losinj"]
[Date "2019.10.03"]
[Round "6.24"]
[White "Muse, Mladen"]
[Black "Jukic, Zdenko"]
[Result "1/2-1/2"]
[ECO "D02"]
[WhiteElo "2387"]
[BlackElo "2305"]
[Annotator "NA"]
[PlyCount "87"]
[EventDate "2019.09.28"]
[EventType "team-tourn"]
[EventCountry "CRO"]
[SourceTitle "playchess.com"]
[Source "ChessBase"]
[SourceQuality "1"]
[TimeControl "40/5400+30:1800+30"]

1. Nf3 {[%emt 0:00:30]} d5 {[%emt 0:00:30]} 2. g3 {[%emt 0:00:30]} Bf5 {[%emt 0:00:00]} 3. Bg2 {[%emt 0:00:30]} Nc6 {[%emt 0:00:00]} 4. d4 {[%emt 0:11:30]} Qd7 {[%emt 0:08:30]} 5. O-O {[%emt 0:09:30]} O-O-O {[%emt 0:02:30]} 6. c3 {[%emt 0:08:30]} f6 {[%emt 0:04:30]} 7. b4 {[%emt 0:01:30]} g5 {[%emt 0:13:30]} 8. Nbd2 {[%emt 0:06:30]} h5 {[%emt 0:07:30]} 9. h4 {[%emt 0:09:30]} g4 {[%emt 0:09:30]} 10. Ne1 {[%emt 0:02:30]} e5 {[%emt 0:00:00]} 11. Nb3 {[%emt 0:11:30]} Nge7 {[%emt 0:22:00]} 12. Nc5 {[%emt 0:05:30]} Qe8 {[%emt 0:00:00]} 13. Qa4 {[%emt 0:05:30]} a6 {[%emt 0:00:00]} 14. b5 {[%emt 0:03:30]} Nb8 {[%emt 0:00:00]} 15. c4 {[%emt 0:09:21]} axb5 {[%emt 0:05:00]} 16. Qa8 {[%emt 0:02:25]} Qc6 {[%emt 0:00:30]} 17. cxd5 {[%emt 0:02:50]} Nxd5 {[%emt 0:00:00]} 18. e4 {[%emt 0:03:12]} exd4 {[%emt 0:00:00]} 19. Nb3 {[%emt 0:01:51]} Nb6 {[%emt 0:00:30]} 20. Qa7 {[%emt 0:01:32]} Bxe4 {[%emt 0:00:30]} 21. Na5 {[%emt 0:01:13]} Bxg2 {[%emt 0:01:30]} 22. Nxg2 {[%emt 0:00:43]} Qd5 {[%emt 0:00:30]} 23. Nf4 {[%emt 0:00:25]} Qe4 {[%emt 0:00:30]} 24. Bd2 {[%emt 0:00:49]} Nc4 {[%emt 0:00:30]} 25. Rfe1 {[%emt 0:00:22]} Qf3 {[%emt 0:00:30]} 26. Ne6 {[%emt 0:00:31]} Bd6 {[%emt 0:01:30]} 27. Nxc4 {[%emt 0:00:45]} bxc4 {[%emt 0:00:30]} 28. Nxd8 {[%emt 0:00:28]} Rxd8 {[%emt 0:00:30]} 29. Qxd4 {[%emt 0:00:21]} Be5 {[%emt 0:00:30]} 30. Qxc4 {[%emt 0:00:15]} Rxd2 {[%emt 0:00:30]} 31. Qe6+ {[%emt 0:00:19]} Kd8 {[%emt 0:00:30]} 32. Qg8+ {[%emt 0:00:34]} Ke7 {[%emt 0:00:30]} 33. Rxe5+ {[%emt 0:00:14]} fxe5 {[%emt 0:00:30]} 34. Qg5+ {[%emt 0:00:00]} Ke6 {[%emt 0:00:30]} 35. Qxd2 {[%emt 0:00:17]} Nc6 {[%emt 0:00:00]} 36. Re1 {[%emt 0:00:07]} Qf7 {[%emt 0:03:00]} 37. Qb2 {[%emt 0:00:57]} Kf6 {[%emt 0:00:30]} 38. Qxb7 {[%emt 0:00:29]} Nd4 {[%emt 0:00:00]} 39. Qa6+ {[%emt 0:00:15]} c6 {[%emt 0:00:00]} 40. Re3 {[%emt 0:00:00]} Qd5 {[%emt 0:00:00]} 41. Qd3 {[%emt 0:08:15]} Qxa2 {[%emt 0:01:00]} 42. Qh7 {[%emt 0:02:30]} Nf3+ {[%emt 0:00:00]} 43. Rxf3+ {[%emt 0:04:20]} gxf3 {[%emt 0:00:00]} 44. Qh6+ {[%emt 0:01:32]} 1/2-1/2